fUSD/lending_fUSD_20240119
["ID","MTS","AMOUNT","RATE_DAILY","PERIOD"]
[312146362,1705669841118,-500.0,0.00021917,2]
[312146365,1705669841128,-1262.81,0.00021917,2]
[312146367,1705669841138,-608.03,0.00021917,2]
[312146369,1705669841147,-500.0,0.00021917,2]
[312146371,1705669841158,-500.0,0.00021917,2]
[312146373,1705669841167,-500.0,0.00021917,2]
[312146384,1705669841262,-500.0,0.00021917,2]
[312146386,1705669841271,-500.0,0.00021917,2]
[312146388,1705669841281,-500.0,0.00021917,2]
[312146390,1705669841291,-500.0,0.00021917,2]
[312146392,1705669841300,-716.12,0.00021917,2]
[312146394,1705669841310,-563.41,0.00021917,2]
[312146395,1705669841320,-500.0,0.00021917,2]
[312146398,1705669841330,-500.0,0.00021917,2]
[312146400,1705669841341,-500.0,0.00021917,2]
[312146401,1705669841351,-500.0,0.00021917,2]
[312146403,1705669841361,-500.0,0.00021917,2]
[312146405,1705669841370,-500.0,0.00021917,2]
[312146408,1705669841380,-500.0,0.00021917,2]
[312146410,1705669841390,-407.07668527,0.00021917,2]
[312146412,1705669841400,-500.0,0.00021917,2]
[312146414,1705669841411,-503.60810719,0.00021917,2]
[312146416,1705669841422,-500.0,0.00021917,2]
[312146418,1705669841432,-500.0,0.00021917,2]
[312146420,1705669841442,-500.0,0.00021917,2]
[312146422,1705669841452,-2777.79,0.00021917,2]
[312146424,1705669841462,-903.17,0.00021917,2]
[312146426,1705669841472,-2777.79,0.00021917,2]
[312146428,1705669841483,-500.0,0.00021917,2]
[312146430,1705669841492,-696.7,0.00021917,2]
[312146432,1705669841502,-1064.15,0.00021917,2]
[312146434,1705669841512,-500.0,0.00021917,2]
[312146436,1705669841522,-500.0,0.00021917,2]
[312146438,1705669841534,-566.42706922,0.00021917,2]
[312146440,1705669841543,-575.26,0.00021917,2]
[312146442,1705669841553,-505.7160114,0.00021917,2]
[312146444,1705669841563,-539.33,0.00021917,2]
[312146446,1705669841573,-500.34,0.00021917,2]
[312146448,1705669841583,-534.59256604,0.00021917,2]
[312146450,1705669841593,-500.0,0.00021917,2]
[312146452,1705669841605,-500.0,0.00021917,2]
[312146454,1705669841616,-542.26,0.00021917,2]
[312146456,1705669841626,-500.0,0.00021917,2]
[312146458,1705669841637,-500.0,0.00021917,2]
[312146460,1705669841647,-2012.98,0.00021917,2]
[312146462,1705669841656,-639.6101371,0.00021917,2]
[312146464,1705669841667,-500.0,0.00021917,2]
[312146466,1705669841676,-500.0,0.00021917,2]
[312146468,1705669841685,-500.0,0.00021917,2]
[312146470,1705669841695,-856.21,0.00021917,2]
[312146472,1705669841705,-684.1,0.00021917,2]
[312146473,1705669841714,-515.06,0.00021917,2]
[312146476,1705669841725,-500.0,0.00021917,2]
[312146478,1705669841735,-814.87,0.00021917,2]
[312146480,1705669841745,-500.0,0.00021917,2]
[312146482,1705669841755,-500.0,0.00021917,2]
[312146484,1705669841765,-500.0,0.00021917,2]
[312146486,1705669841775,-500.0,0.00021917,2]
[312146487,1705669841787,-500.0,0.00021917,2]
[312146489,1705669841797,-500.0,0.00021917,2]
[312146491,1705669841807,-500.0,0.00021917,2]
[312146494,1705669841817,-718.46,0.00021917,2]
[312146496,1705669841829,-500.0,0.00021917,2]
[312146497,1705669841838,-502.27788379,0.00021917,2]
[312146500,1705669841848,-500.0,0.00021917,2]
[312146502,1705669841858,-500.0,0.00021917,2]
[312146504,1705669841868,-1408.02,0.00021917,2]
[312146505,1705669841879,-500.0,0.00021917,2]
[312146508,1705669841889,-500.0,0.00021917,2]
[312146509,1705669841899,-500.0,0.00021917,2]
[312146511,1705669841909,-500.0,0.00021917,2]
[312146513,1705669841919,-500.0,0.00021917,2]
[312146515,1705669841928,-500.0,0.00021917,2]
[312146518,1705669841938,-503.62762908,0.00021917,2]
[312146520,1705669841948,-546.65,0.00021917,2]
[312146522,1705669841958,-500.0,0.00021917,2]
[312146524,1705669841968,-500.0,0.00021917,2]
[312146526,1705669841978,-500.0,0.00021917,2]
[312146528,1705669841988,-841.35,0.00021917,2]
[312146530,1705669841998,-500.0,0.00021917,2]
[312146532,1705669842008,-500.0,0.00021917,2]
[312146534,1705669842018,-770.59,0.00021917,2]
[312146536,1705669842027,-733.89,0.00021917,2]
[312146538,1705669842038,-769.83,0.00021917,2]
[312146540,1705669842048,-500.0,0.00021917,2]
[312146542,1705669842058,-500.0,0.00021917,2]
[312146543,1705669842067,-926.17,0.00021917,2]
[312146545,1705669842077,-680.95,0.00021917,2]
[312146548,1705669842088,-510.56594999,0.00021917,2]
[312146549,1705669842098,-500.0,0.00021917,2]
[312146551,1705669842107,-500.0,0.00021917,2]
[312146553,1705669842117,-500.0,0.00021917,2]
[312146555,1705669842127,-500.0,0.00021917,2]
[312146557,1705669842137,-622.1,0.00021917,2]
[312146560,1705669842147,-512.84257404,0.00021917,2]
[312146561,1705669842157,-500.0,0.00021917,2]
[312146563,1705669842167,-500.0,0.00021917,2]
[312146565,1705669842177,-500.0,0.00021917,2]
[312146567,1705669842187,-364.76119587,0.00021917,2]
[312146569,1705669842197,-500.0,0.00021917,2]
[312146571,1705669842206,-167.68074467,0.00021917,2]
[312146573,1705669842216,-506.52796086,0.00021917,2]
[312146574,1705669842226,-500.0,0.00021917,2]
[312146575,1705669842236,-500.0,0.00021917,2]
[312146576,1705669842246,-500.0,0.00021917,2]
[312146577,1705669842256,-500.0,0.00021917,2]
[312146578,1705669842265,-500.63975978,0.00021917,2]
[312146579,1705669842275,-852.32,0.00021917,2]
[312146580,1705669842286,-500.0,0.00021917,2]
[312146583,1705669842295,-541.18,0.00021917,2]
[312146586,1705669842305,-774.53,0.00021917,2]
[312146589,1705669842314,-623.89,0.00021917,2]
[312146592,1705669842324,-500.0,0.00021917,2]
[312146595,1705669842334,-500.0,0.00021917,2]
[312146598,1705669842344,-910.14,0.00021917,2]
[312146601,1705669842353,-500.0,0.00021917,2]
[312146604,1705669842363,-500.0,0.00021917,2]
[312146607,1705669842373,-500.0,0.00021917,2]
[312146610,1705669842383,-500.0,0.00021917,2]
[312146613,1705669842393,-500.0,0.00021917,2]
[312146616,1705669842403,-918.52,0.00021917,2]
[312146620,1705669842412,-500.0,0.00021917,2]
[312146623,1705669842423,-500.0,0.00021917,2]
[312146626,1705669842433,-500.0,0.00021917,2]
[312146630,1705669842444,-500.0,0.00021917,2]
[312146633,1705669842454,-500.0,0.00021917,2]
[312146636,1705669842465,-1225.46,0.00021917,2]
[312146639,1705669842475,-503.12319152,0.00021917,2]
[312146641,1705669842484,-1110.62,0.00021917,2]
[312146644,1705669842494,-500.0,0.00021917,2]
[312146647,1705669842504,-500.0,0.00021917,2]
[312146650,1705669842515,-500.0,0.00021917,2]
[312146653,1705669842526,-500.0,0.00021917,2]
[312146655,1705669842535,-512.41779573,0.00021917,2]
[312146658,1705669842546,-500.0,0.00021917,2]
[312146661,1705669842556,-500.0,0.00021917,2]
[312146664,1705669842566,-507.74940778,0.00021917,2]
[312146667,1705669842576,-505.77191836,0.00021917,2]
[312146670,1705669842586,-500.82299405,0.00021917,2]
[312146673,1705669842596,-500.0,0.00021917,2]
[312146676,1705669842606,-501.55436305,0.00021917,2]
[312146679,1705669842616,-722.75,0.00021917,2]
[312146682,1705669842626,-500.0,0.00021917,2]
[312146684,1705669842636,-500.0,0.00021917,2]
[312146687,1705669842647,-681.27,0.00021917,2]
[312146690,1705669842657,-720.2,0.00021917,2]
[312146693,1705669842667,-502.52551678,0.00021917,2]
[312146696,1705669842677,-500.0,0.00021917,2]
[312146699,1705669842687,-500.0,0.00021917,2]
[312146702,1705669842696,-1281.21,0.00021917,2]
[312146705,1705669842706,-960.8,0.00021917,2]
[312146708,1705669842715,-508.42748327,0.00021917,2]
[312146711,1705669842725,-505.97389697,0.00021917,2]
[312146714,1705669842735,-500.0,0.00021917,2]
[312146717,1705669842745,-376.18208216,0.00021917,2]
[312146719,1705669842755,-500.0,0.00021917,2]
[312146721,1705669842764,-500.0,0.00021917,2]
[312146722,1705669842774,-1200.27,0.00021917,2]
[312146724,1705669842785,-500.0,0.00021917,2]
[312146726,1705669842795,-500.0,0.00021917,2]
[312146728,1705669842805,-500.0,0.00021917,2]
[312146730,1705669842814,-996.2,0.00021917,2]
[312146732,1705669842825,-262.90756957,0.00021917,2]
[312146734,1705669842835,-500.0,0.00021917,2]
[312146736,1705669842845,-500.0,0.00021917,2]
[312146738,1705669842855,-500.0,0.00021917,2]
[312146740,1705669842866,-733.48,0.00021917,2]
[312146742,1705669842876,-717.41,0.00021917,2]
[312146744,1705669842886,-500.0,0.00021917,2]
[312146746,1705669842896,-500.0,0.00021917,2]
[312146748,1705669842905,-500.0,0.00021917,2]
[312146750,1705669842915,-567.28,0.00021917,2]
[312146752,1705669842924,-209.75666271,0.00021917,2]
[312146754,1705669842934,-500.0,0.00021917,2]
[312146755,1705669842943,-500.0,0.00021917,2]
[312146757,1705669842953,-544.36,0.00021917,2]
[312146759,1705669842963,-500.0,0.00021917,2]
[312146761,1705669842972,-500.0,0.00021917,2]
[312146763,1705669842982,-507.19618776,0.00021917,2]
[312146765,1705669842992,-500.0,0.00021917,2]
[312146767,1705669843002,-500.0,0.00021917,2]
[312146769,1705669843012,-1000.0,0.00021917,2]
[312146771,1705669843022,-500.0,0.00021917,2]
[312146774,1705669843032,-500.0,0.00021917,2]
[312146777,1705669843041,-500.0,0.00021917,2]
[312146779,1705669843053,-508.81,0.00021917,2]
[312146781,1705669843062,-500.0,0.00021917,2]
[312146783,1705669843072,-500.0,0.00021917,2]
[312146785,1705669843082,-500.0,0.00021917,2]
[312146787,1705669843091,-500.0,0.00021917,2]
[312146789,1705669843101,-500.0,0.00021917,2]
[312146791,1705669843111,-500.0,0.00021917,2]
[312146793,1705669843121,-519.08948408,0.00021917,2]
[312146795,1705669843131,-500.0,0.00021917,2]
[312146797,1705669843141,-501.90841,0.00021917,2]
[312146799,1705669843151,-500.0,0.00021917,2]
[312146801,1705669843160,-500.0,0.00021917,2]
[312146803,1705669843170,-500.0,0.00021917,2]
[312146805,1705669843180,-685.86,0.00021917,2]
[312146807,1705669843189,-151.67093859,0.00021917,2]
[312146809,1705669843200,-500.0,0.00021917,2]
[312146811,1705669843210,-864.15,0.00021917,2]
[312146813,1705669843219,-517.52012958,0.00021917,2]
[312146815,1705669843228,-500.0,0.00021917,2]
[312146817,1705669843238,-500.0,0.00021917,2]
[312146819,1705669843247,-500.0,0.00021917,2]
[312146821,1705669843260,-500.0,0.00021917,2]
[312146823,1705669843270,-500.0,0.00021917,2]
[312146825,1705669843280,-502.08,0.00021917,2]
[312146827,1705669843290,-504.94,0.00021917,2]
[312146829,1705669843300,-500.0,0.00021917,2]
[312146831,1705669843309,-854.99,0.00021917,2]
[312146833,1705669843320,-500.0,0.00021917,2]
[312146835,1705669843330,-606.04,0.00021917,2]
[312146837,1705669843341,-851.01,0.00021917,2]
[312146839,1705669843351,-500.0,0.00021917,2]
[312146841,1705669843360,-571.27,0.00021917,2]
[312146843,1705669843370,-512.13512293,0.00021917,2]
[312146845,1705669843380,-1336.55,0.00021917,2]
[312146847,1705669843389,-500.0,0.00021917,2]
[312146849,1705669843399,-500.0,0.00021917,2]
[312146851,1705669843409,-500.0,0.00021917,2]
[312146853,1705669843419,-504.84621267,0.00021917,2]
[312146855,1705669843429,-500.0,0.00021917,2]
[312146857,1705669843439,-500.0,0.00021917,2]
[312146859,1705669843449,-500.0,0.00021917,2]
[312146861,1705669843458,-500.0,0.00021917,2]
[312146863,1705669843468,-500.0,0.00021917,2]
[312146865,1705669843479,-500.0,0.00021917,2]
[312146867,1705669843488,-953.61,0.00021917,2]
[312146869,1705669843498,-500.0,0.00021917,2]
[312146871,1705669843508,-504.3656595,0.00021917,2]
[312146873,1705669843517,-536.63,0.00021917,2]
[312146875,1705669843527,-500.0,0.00021917,2]
[312146877,1705669843536,-500.0,0.00021917,2]
[312146879,1705669843547,-662.32,0.00021917,2]
[312146881,1705669843557,-770.79,0.00021917,2]
[312146883,1705669843566,-500.0,0.00021917,2]
[312146885,1705669843576,-500.0,0.00021917,2]
[312146887,1705669843585,-500.0,0.00021917,2]
[312146889,1705669843595,-500.0,0.00021917,2]
[312146891,1705669843604,-500.0,0.00021917,2]
[312146893,1705669843614,-500.0,0.00021917,2]
[312146895,1705669843624,-811.51,0.00021917,2]
[312146897,1705669843634,-500.0,0.00021917,2]
[312146899,1705669843644,-845.2,0.00021917,2]
[312146901,1705669843655,-500.0,0.00021917,2]
[312146903,1705669843665,-500.0,0.00021917,2]
[312146905,1705669843675,-508.33798911,0.00021917,2]
[312146907,1705669843685,-500.0,0.00021917,2]
[312146909,1705669843695,-500.0,0.00021917,2]
[312146911,1705669843706,-788.16,0.00021917,2]
[312146913,1705669843715,-500.0,0.00021917,2]
[312146915,1705669843725,-653.02,0.00021917,2]
[312146917,1705669843735,-500.0,0.00021917,2]
[312146919,1705669843745,-1258.44,0.00021917,2]
[312146921,1705669843755,-500.0,0.00021917,2]
[312146923,1705669843765,-502.87007331,0.00021917,2]
[312146925,1705669843774,-500.0,0.00021917,2]
[312146927,1705669843786,-500.0,0.00021917,2]
[312146929,1705669843796,-500.0,0.00021917,2]
[312146931,1705669843806,-500.0,0.00021917,2]
[312146933,1705669843815,-500.0,0.00021917,2]
[312146935,1705669843827,-517.37665117,0.00021917,2]
[312146937,1705669843836,-500.0,0.00021917,2]
[312146939,1705669843846,-500.0,0.00021917,2]
[312146941,1705669843855,-500.0,0.00021917,2]
[312146943,1705669843866,-513.82520126,0.00021917,2]
[312146945,1705669843876,-500.0,0.00021917,2]
[312146947,1705669843886,-500.0,0.00021917,2]
[312146949,1705669843895,-500.0,0.00021917,2]
[312146951,1705669843905,-500.0,0.00021917,2]
[312146953,1705669843914,-500.0,0.00021917,2]
[312146955,1705669843924,-553.62979776,0.00021917,2]
[312146957,1705669843935,-500.0,0.00021917,2]
[312146959,1705669843944,-640.03,0.00021917,2]
[312146961,1705669843954,-769.35,0.00021917,2]
[312146963,1705669843964,-500.0,0.00021917,2]
[312146965,1705669843973,-570.39,0.00021917,2]
[312146967,1705669843983,-510.87968851,0.00021917,2]
[312146969,1705669843992,-500.0,0.00021917,2]
[312146971,1705669844002,-521.33310348,0.00021917,2]
[312146973,1705669844011,-175.31652727,0.00021917,2]
[312146975,1705669844020,-512.38870929,0.00021917,2]
[312146977,1705669844030,-500.0,0.00021917,2]
[312146979,1705669844041,-500.0,0.00021917,2]
[312146981,1705669844051,-723.58,0.00021917,2]
[312146983,1705669844061,-500.0,0.00021917,2]
[312146985,1705669844071,-500.0,0.00021917,2]
[312146986,1705669844082,-1088.57,0.00021917,2]
[312146989,1705669844093,-1400.81,0.00021917,2]
[312146991,1705669844103,-500.0,0.00021917,2]
[312146992,1705669844113,-500.0,0.00021917,2]
[312146995,1705669844124,-500.0,0.00021917,2]
[312146997,1705669844135,-500.0,0.00021917,2]
[312146999,1705669844144,-613.93,0.00021917,2]
[312147000,1705669844154,-500.0,0.00021917,2]
[312147002,1705669844164,-500.0,0.00021917,2]
[312147004,1705669844174,-500.0,0.00021917,2]
[312147006,1705669844183,-749.16,0.00021917,2]
[312147008,1705669844193,-500.0,0.00021917,2]
[312147010,1705669844203,-739.73,0.00021917,2]
[312147011,1705669844213,-500.0,0.00021917,2]
[312147012,1705669844223,-500.0,0.00021917,2]
[312147013,1705669844233,-500.0,0.00021917,2]
[312147014,1705669844243,-1591.86,0.00021917,2]
[312147015,1705669844253,-500.0,0.00021917,2]
[312147016,1705669844264,-545.31407051,0.00021917,2]
[312147017,1705669844274,-500.0,0.00021917,2]
[312147018,1705669844285,-520.91,0.00021917,2]
[312147020,1705669844295,-500.0,0.00021917,2]
[312147022,1705669844305,-500.0,0.00021917,2]
[312147024,1705669844315,-500.0,0.00021917,2]
[312147026,1705669844327,-500.0,0.00021917,2]
[312147027,1705669844337,-556.82,0.00021917,2]
[312147029,1705669844347,-500.0,0.00021917,2]
[312147031,1705669844358,-500.0,0.00021917,2]
[312147033,1705669844367,-500.0,0.00021917,2]
[312147036,1705669844377,-657.02,0.00021917,2]
[312147038,1705669844387,-500.0,0.00021917,2]
[312147040,1705669844396,-500.0,0.00021917,2]
[312147041,1705669844406,-903.89,0.00021917,2]
[312147043,1705669844416,-221.6514265,0.00021917,2]
[312147045,1705669844425,-1000.86,0.00021917,2]
[312147047,1705669844435,-503.84188726,0.00021917,2]
[312147049,1705669844445,-500.0,0.00021917,2]
[312147051,1705669844455,-500.0,0.00021917,2]
[312147053,1705669844464,-500.0,0.00021917,2]
[312147055,1705669844474,-500.0,0.00021917,2]
[312147057,1705669844484,-500.0,0.00021917,2]
[312147059,1705669844494,-619.43,0.00021917,2]
[312147061,1705669844504,-759.91,0.00021917,2]
[312147064,1705669844514,-500.0,0.00021917,2]
[312147065,1705669844525,-549.59,0.00021917,2]
[312147067,1705669844535,-754.71,0.00021917,2]
[312147069,1705669844544,-500.0,0.00021917,2]
[312147071,1705669844554,-500.0,0.00021917,2]
[312147073,1705669844563,-502.78586201,0.00021917,2]
[312147075,1705669844576,-500.0,0.00021917,2]
[312147077,1705669844586,-971.36,0.00021917,2]
[312147079,1705669844596,-500.0,0.00021917,2]
[312147081,1705669844605,-500.0,0.00021917,2]
[312147083,1705669844615,-500.0,0.00021917,2]
[312147085,1705669844625,-500.0,0.00021917,2]
[312147087,1705669844634,-500.0,0.00021917,2]
[312147089,1705669844644,-1295.82,0.00021917,2]
[312147091,1705669844655,-500.0,0.00021917,7]
[312147093,1705669844665,-536.32,0.00021917,2]
[312147095,1705669844675,-503.53703165,0.00021917,2]
[312147097,1705669844685,-500.0,0.00021917,2]
[312147099,1705669844694,-697.99,0.00021917,2]
[312147101,1705669844704,-637.25,0.00021917,2]
[312147103,1705669844714,-585.76,0.00021917,2]
[312147105,1705669844724,-500.0,0.00021917,2]
[312147107,1705669844733,-500.0,0.00021917,2]
[312147109,1705669844745,-242.89368429,0.00021917,2]
[312147111,1705669844755,-500.0,0.00021917,2]
[312147113,1705669844765,-508.57,0.00021917,2]
[312147115,1705669844775,-500.0,0.00021917,2]
[312147117,1705669844788,-522.52396058,0.00021917,2]
[312147119,1705669844798,-500.0,0.00021917,2]
[312147121,1705669844807,-500.0,0.00021917,2]
[312147123,1705669844817,-516.49,0.00021917,2]
[312147125,1705669844829,-174.05978527,0.00021917,2]
[312147127,1705669844839,-500.0,0.00021917,2]
[312147129,1705669844849,-500.0,0.00021917,2]
[312147132,1705669844859,-508.51904102,0.00021917,2]
[312147133,1705669844869,-674.4,0.00021917,2]
[312147136,1705669844881,-516.56316659,0.00021917,2]
[312147138,1705669844891,-500.0,0.00021917,2]
[312147140,1705669844900,-1174.25,0.00021917,2]
[312147141,1705669844910,-500.0,0.00021917,2]
[312147144,1705669844920,-293.02504965,0.00021917,2]
[312147146,1705669844929,-500.0,0.00021917,2]
[312147147,1705669844939,-2577.21,0.00021917,2]
[312147150,1705669844949,-551.89,0.00021917,2]
[312147152,1705669844958,-1004.34,0.00021917,2]
[312147154,1705669844968,-500.0,0.00021917,2]
[312147155,1705669844977,-500.0,0.00021917,2]
[312147158,1705669844989,-500.0,0.00021917,2]
[312147160,1705669844998,-500.0,0.00021917,2]
[312147161,1705669845007,-500.0,0.00021917,2]
[312147163,1705669845016,-520.26020565,0.00021917,2]
[312147165,1705669845026,-500.0,0.00021917,2]
[312147167,1705669845036,-500.0,0.00021917,2]
[312147169,1705669845046,-500.0,0.00021917,2]
[312147172,1705669845056,-500.0,0.00021917,2]
[312147174,1705669845066,-595.37,0.00021917,2]
[312147176,1705669845077,-500.0,0.00021917,2]
[312147178,1705669845086,-975.94,0.00021917,2]
[312147180,1705669845096,-500.0,0.00021917,2]
[312147182,1705669845106,-500.0,0.00021917,2]
[312147183,1705669845115,-500.0,0.00021917,2]
[312147185,1705669845124,-500.0,0.00021917,2]
[312147187,1705669845134,-500.0,0.00021917,2]
[312147189,1705669845144,-500.0,0.00021917,2]
[312147191,1705669845153,-1384.81,0.00021917,2]
[312147193,1705669845162,-517.97729928,0.00021917,2]
[312147195,1705669845172,-500.0,0.00021917,2]
[312147197,1705669845181,-500.0,0.00021917,2]
[312147199,1705669845191,-500.0,0.00021917,2]
[312147201,1705669845200,-500.0,0.00021917,2]
[312147203,1705669845210,-500.0,0.00021917,2]
[312147205,1705669845220,-300.0,0.00021917,2]
[312147207,1705669845229,-2155.6,0.00021917,2]
[312147209,1705669845239,-500.0,0.00021917,2]
[312147211,1705669845249,-607.66,0.00021917,2]
[312147213,1705669845258,-500.0,0.00021917,2]
[312147215,1705669845268,-500.0,0.00021917,2]
[312147217,1705669845279,-500.0,0.00021917,2]
[312147219,1705669845289,-160.73259909,0.00021917,2]
[312147221,1705669845298,-993.96,0.00021917,2]
[312147225,1705669845308,-500.0,0.00021917,2]
[312147227,1705669845317,-500.0,0.00021917,2]
[312147230,1705669845328,-500.0,0.00021917,2]
[312147233,1705669845339,-500.0,0.00021917,2]
[312147235,1705669845349,-500.0,0.00021917,2]
[312147238,1705669845360,-500.0,0.00021917,2]
[312147240,1705669845370,-500.0,0.00021917,2]
[312147242,1705669845381,-242.79421084,0.00021917,2]
[312147245,1705669845391,-500.0,0.00021917,2]
[312147247,1705669845402,-1491.73,0.00021917,2]
[312147249,1705669845411,-500.0,0.00021917,2]
[312147251,1705669845421,-501.23266239,0.00021917,2]
[312147254,1705669845431,-500.0,0.00021917,2]
[312147256,1705669845441,-500.0,0.00021917,2]
[312147259,1705669845451,-2597.14,0.00021917,2]
[312147261,1705669845460,-500.0,0.00021917,2]
[312147263,1705669845469,-500.0,0.00021917,2]
[312147265,1705669845479,-500.0,0.00021917,2]
[312147282,1705669845627,-884.11,0.00021917,2]
[312147284,1705669845638,-500.0,0.00021917,2]
[312147286,1705669845648,-500.0,0.00021917,2]
[312147288,1705669845658,-702.17,0.00021917,2]
[312147290,1705669845668,-500.0,0.00021917,2]
[312147292,1705669845678,-500.0,0.00021917,2]
[312147294,1705669845688,-501.79406976,0.00021917,2]
[312147296,1705669845698,-1278.53,0.00021917,2]
[312147298,1705669845707,-509.99,0.00021917,2]
[312147300,1705669845716,-500.0,0.00021917,2]
[312147302,1705669845727,-1304.44,0.00021917,2]
[312147304,1705669845737,-644.49,0.00021917,2]
[312147306,1705669845747,-500.0,0.00021917,2]
[312147308,1705669845757,-500.0,0.00021917,2]
[312147310,1705669845766,-508.19904134,0.00021917,2]
[312147312,1705669845776,-756.21,0.00021917,2]
[312147314,1705669845789,-4136.35,0.00021917,2]
[312147316,1705669845799,-500.0,0.00021917,2]
[312147318,1705669845809,-500.0,0.00021917,2]
[312147320,1705669845819,-500.0,0.00021917,2]
[312147322,1705669845831,-500.0,0.00021917,2]
[312147324,1705669845841,-501.83508985,0.00021917,2]
[312147327,1705669845850,-500.0,0.00021917,2]
[312147329,1705669845860,-1691.78,0.00021917,2]
[312147331,1705669845872,-957.56,0.00021917,2]
[312147333,1705669845883,-500.0,0.00021917,2]
[312147335,1705669845893,-500.0,0.00021917,2]
[312147337,1705669845903,-500.0,0.00021917,2]
[312147339,1705669845913,-500.0,0.00021917,2]
[312147341,1705669845923,-507.85475515,0.00021917,2]
[312147343,1705669845932,-500.0,0.00021917,2]
[312147345,1705669845942,-500.0,0.00021917,2]
[312147347,1705669845952,-561.8,0.00021917,2]
[312147349,1705669845962,-500.0,0.00021917,2]
[312147351,1705669845972,-1210.49,0.00021917,2]
[312147353,1705669845982,-500.0,0.00021917,2]
[312147355,1705669845993,-557.2,0.00021917,2]
[312147356,1705669846002,-500.0,0.00021917,2]
[312147357,1705669846011,-500.0,0.00021917,2]
[312147358,1705669846021,-504.64532564,0.00021917,2]
[312147359,1705669846031,-500.0,0.00021917,2]
[312147360,1705669846041,-1263.43,0.00021917,2]
[312147361,1705669846050,-535.21663235,0.00021917,2]
[312147362,1705669846059,-970.19,0.00021917,2]
[312147364,1705669846069,-543.11331952,0.00021917,2]
[312147366,1705669846080,-3690.4,0.00021917,2]
[312147368,1705669846090,-618.61252523,0.00021917,2]
[312147370,1705669846100,-500.0,0.00021917,2]
[312147372,1705669846109,-500.0,0.00021917,2]
[312147374,1705669846119,-790.63,0.00021917,2]
[312147376,1705669846128,-500.0,0.00021917,2]
[312147378,1705669846138,-500.0,0.00021917,2]
[312147380,1705669846148,-500.0,0.00021917,2]
[312147382,1705669846158,-503.17013127,0.00021917,2]
[312147384,1705669846168,-500.0,0.00021917,2]
[312147386,1705669846178,-702.42,0.00021917,2]
[312147388,1705669846189,-500.0,0.00021917,2]
[312147390,1705669846198,-3924.47,0.00021917,2]
[312147392,1705669846208,-500.0,0.00021917,2]
[312147394,1705669846218,-973.67,0.00021917,2]
[312147396,1705669846228,-598.21,0.00021917,2]
[312147398,1705669846238,-500.0,0.00021917,2]
[312147400,1705669846248,-1520.21,0.00021917,2]
[312147402,1705669846258,-500.0,0.00021917,2]
[312147404,1705669846268,-500.0,0.00021917,2]
[312147406,1705669846278,-562.92,0.00021917,2]
[312147408,1705669846288,-821.93,0.00021917,2]
[312147410,1705669846299,-4002.65,0.00021917,2]
[312147412,1705669846309,-1299.47,0.00021917,2]
[312147414,1705669846319,-432.23153749,0.00021917,2]